[Event "Titled Tuesday Blitz May 9 Early 2023"]
[White "Srebrnic, Ana"]
[Black "Ankudinova, Yelena"]
[WhiteFideId "14603314"]
[BlackFideId "13702114"]
[WhiteElo "2181"]
[BlackElo "1937"]
[Result "0-1"]
[Round "05"]
[TimeControl "180+2"]
[Date "2023.05.09"]
[WhiteClock "0:00:15"]
[BlackClock "0:01:17"]

1. d4 {[%clk 0:02:56]}  d5 {[%clk 0:02:58]} 2. Bf4 {[%clk 0:02:50]}  Nf6 {[%clk 0:02:56]} 3. e3 {[%clk 0:02:50]}  c5 {[%clk 0:02:56]} 4. c3 {[%clk 0:02:50]}  Nc6 {[%clk 0:02:54]} 5. Nd2 {[%clk 0:02:48]}  Qb6 {[%clk 0:02:53]} 6. Qb3 {[%clk 0:02:47]}  c4 {[%clk 0:02:53]} 7. Qc2 {[%clk 0:02:39]}  g6 {[%clk 0:02:44]} 8. Ngf3 {[%clk 0:02:37]}  Bf5 {[%clk 0:02:43]} 9. Qc1 {[%clk 0:02:33]}  Bg7 {[%clk 0:02:43]} 10. Nh4 {[%clk 0:02:32]}  Bd7 {[%clk 0:02:32]} 11. Nhf3 {[%clk 0:02:31]}  O-O {[%clk 0:02:31]} 12. Be2 {[%clk 0:02:31]}  Nh5 {[%clk 0:02:26]} 13. Bg3 {[%clk 0:02:23]}  Nxg3 {[%clk 0:02:24]} 14. hxg3 {[%clk 0:02:22]}  Qc7 {[%clk 0:02:21]} 15. b3 {[%clk 0:02:19]}  b5 {[%clk 0:02:20]} 16. Ng5 {[%clk 0:02:10]}  h6 {[%clk 0:02:17]} 17. Ngf3 {[%clk 0:02:04]}  e5 {[%clk 0:02:07]} 18. dxe5 {[%clk 0:01:31]}  Nxe5 {[%clk 0:02:07]} 19. Nxe5 {[%clk 0:01:32]}  Qxe5 {[%clk 0:02:05]} 20. Bf3 {[%clk 0:01:06]}  Be6 {[%clk 0:01:55]} 21. Rb1 {[%clk 0:00:57]}  Qxc3 {[%clk 0:01:54]} 22. Qxc3 {[%clk 0:00:56]}  Bxc3 {[%clk 0:01:53]} 23. Ke2 {[%clk 0:00:46]}  Kg7 {[%clk 0:01:44]} 24. Rhd1 {[%clk 0:00:42]}  Bf5 {[%clk 0:01:27]} 25. e4 {[%clk 0:00:36]}  Rfe8 {[%clk 0:01:25]} 26. Kf1 {[%clk 0:00:23]}  dxe4 {[%clk 0:01:20]} 27. Be2 {[%clk 0:00:22]}  Bxd2 {[%clk 0:01:18]} 28. Rxd2 {[%clk 0:00:15]}  e3 {[%clk 0:01:17]} 0-1


[Site "https://www.chess.com"]

[Event "Titled Tuesday Blitz May 9 Early 2023"]
[White "Maluco_do_Natal_00"]
[Black "Smietanska, Wiktoria"]
[BlackFideId "21869359"]
[WhiteElo "2015"]
[BlackElo "1995"]
[Result "1-0"]
[Round "05"]
[TimeControl "180+2"]
[Date "2023.05.09"]
[WhiteClock "0:00:08"]
[BlackClock "0:00:00"]

1. e4 {[%clk 0:02:59]}  c5 {[%clk 0:02:57]} 2. Nf3 {[%clk 0:02:58]}  d6 {[%clk 0:02:56]} 3. d4 {[%clk 0:02:58]}  cxd4 {[%clk 0:02:57]} 4. Nxd4 {[%clk 0:02:59]}  Nf6 {[%clk 0:02:57]} 5. Nc3 {[%clk 0:02:59]}  a6 {[%clk 0:02:58]} 6. Be3 {[%clk 0:02:59]}  e5 {[%clk 0:02:58]} 7. Nb3 {[%clk 0:02:59]}  Be6 {[%clk 0:02:58]} 8. Qd2 {[%clk 0:02:59]}  Nbd7 {[%clk 0:02:57]} 9. f3 {[%clk 0:02:59]}  b5 {[%clk 0:02:56]} 10. g4 {[%clk 0:02:57]}  Be7 {[%clk 0:02:54]} 11. g5 {[%clk 0:02:56]}  Nh5 {[%clk 0:02:54]} 12. Nd5 {[%clk 0:02:29]}  Bxd5 {[%clk 0:02:32]} 13. Qxd5 {[%clk 0:02:28]}  Rc8 {[%clk 0:02:18]} 14. Qd2 {[%clk 0:02:22]}  Qc7 {[%clk 0:01:48]} 15. O-O-O {[%clk 0:02:10]}  Nb6 {[%clk 0:01:42]} 16. Na5 {[%clk 0:01:37]}  Nc4 {[%clk 0:01:23]} 17. Nxc4 {[%clk 0:01:30]}  bxc4 {[%clk 0:01:23]} 18. Qc3 {[%clk 0:01:07]}  O-O {[%clk 0:01:11]} 19. Kb1 {[%clk 0:00:48]}  a5 {[%clk 0:00:50]} 20. Rg1 {[%clk 0:00:43]}  Rb8 {[%clk 0:00:27]} 21. Qxc4 {[%clk 0:00:20]}  Qb7 {[%clk 0:00:26]} 22. b3 {[%clk 0:00:17]}  Rfc8 {[%clk 0:00:25]} 23. Qa4 {[%clk 0:00:14]}  Qc7 {[%clk 0:00:21]} 24. Bd3 {[%clk 0:00:13]}  Rb4 {[%clk 0:00:17]} 25. Qa3 {[%clk 0:00:11]}  d5 {[%clk 0:00:01]} 26. Qb2 {[%clk 0:00:08]}  d4 {[%clk 0:00:01]} 27. Bd2 {[%clk 0:00:08]}  Rb7 {[%clk 0:00:00]} 28. Rc1 {[%clk 0:00:08]} 1-0


[Site "https://www.chess.com"]

[Event "Titled Tuesday Blitz May 9 Early 2023"]
[White "Sjugirov, Sanan"]
[Black "Carlsen, Magnus"]
[WhiteFideId "4189302"]
[BlackFideId "1503014"]
[WhiteElo "2569"]
[BlackElo "2852"]
[Result "0-1"]
[Round "06"]
[TimeControl "180+2"]
[Date "2023.05.09"]
[WhiteClock "0:00:00"]
[BlackClock "0:01:28"]

1. e4 {[%clk 0:03:00]}  e6 {[%clk 0:03:00]} 2. d4 {[%clk 0:03:00]}  a6 {[%clk 0:02:54]} 3. Nf3 {[%clk 0:02:56]}  h6 {[%clk 0:02:48]} 4. Bd3 {[%clk 0:02:55]}  d6 {[%clk 0:02:43]} 5. c3 {[%clk 0:02:35]}  Nd7 {[%clk 0:02:39]} 6. Nbd2 {[%clk 0:02:35]}  b6 {[%clk 0:02:36]} 7. Nf1 {[%clk 0:02:35]}  Bb7 {[%clk 0:02:33]} 8. Ng3 {[%clk 0:02:36]}  g6 {[%clk 0:02:31]} 9. O-O {[%clk 0:02:34]}  Bg7 {[%clk 0:02:32]} 10. Re1 {[%clk 0:02:34]}  e5 {[%clk 0:02:31]} 11. a4 {[%clk 0:02:29]}  Ngf6 {[%clk 0:02:31]} 12. h3 {[%clk 0:02:27]}  O-O {[%clk 0:02:31]} 13. d5 {[%clk 0:02:19]}  c6 {[%clk 0:02:25]} 14. dxc6 {[%clk 0:02:17]}  Bxc6 {[%clk 0:02:26]} 15. c4 {[%clk 0:02:15]}  a5 {[%clk 0:02:25]} 16. Bc2 {[%clk 0:02:10]}  Nc5 {[%clk 0:02:26]} 17. b3 {[%clk 0:02:08]}  Re8 {[%clk 0:02:25]} 18. Nd2 {[%clk 0:01:49]}  Ra7 {[%clk 0:02:15]} 19. Nb1 {[%clk 0:01:49]}  h5 {[%clk 0:02:13]} 20. Nc3 {[%clk 0:01:49]}  Rd7 {[%clk 0:02:13]} 21. Bg5 {[%clk 0:01:38]}  Ne6 {[%clk 0:02:12]} 22. Be3 {[%clk 0:01:31]}  h4 {[%clk 0:02:12]} 23. Nge2 {[%clk 0:01:26]}  Nh5 {[%clk 0:02:12]} 24. Qd2 {[%clk 0:01:24]}  Nhf4 {[%clk 0:02:11]} 25. Rad1 {[%clk 0:01:04]}  Qg5 {[%clk 0:02:08]} 26. Bxf4 {[%clk 0:01:02]}  exf4 {[%clk 0:02:08]} 27. f3 {[%clk 0:00:58]}  Be5 {[%clk 0:02:00]} 28. Nd5 {[%clk 0:00:48]}  Bxd5 {[%clk 0:02:00]} 29. Qxd5 {[%clk 0:00:45]}  Qf6 {[%clk 0:01:56]} 30. Kh1 {[%clk 0:00:43]}  Kg7 {[%clk 0:01:56]} 31. Qb5 {[%clk 0:00:37]}  Nc5 {[%clk 0:01:55]} 32. Qxb6 {[%clk 0:00:33]}  Ra8 {[%clk 0:01:52]} 33. Qc6 {[%clk 0:00:31]}  Rb8 {[%clk 0:01:48]} 34. Qd5 {[%clk 0:00:22]}  Rdb7 {[%clk 0:01:44]} 35. Nc1 {[%clk 0:00:20]}  Rc7 {[%clk 0:01:42]} 36. Nd3 {[%clk 0:00:17]}  Nxd3 {[%clk 0:01:42]} 37. Qxd3 {[%clk 0:00:18]}  Rc5 {[%clk 0:01:41]} 38. Qe2 {[%clk 0:00:18]}  Bc3 {[%clk 0:01:40]} 39. Rf1 {[%clk 0:00:18]}  Rg5 {[%clk 0:01:40]} 40. Rd3 {[%clk 0:00:15]}  Bb4 {[%clk 0:01:40]} 41. Rfd1 {[%clk 0:00:15]}  Bc5 {[%clk 0:01:40]} 42. Rd5 {[%clk 0:00:15]}  Re8 {[%clk 0:01:38]} 43. Rxg5 {[%clk 0:00:15]}  Qxg5 {[%clk 0:01:39]} 44. Qe1 {[%clk 0:00:14]}  Bb4 {[%clk 0:01:35]} 45. Qf2 {[%clk 0:00:14]}  Re5 {[%clk 0:01:32]} 46. Bd3 {[%clk 0:00:10]}  Bc5 {[%clk 0:01:27]} 47. Qe1 {[%clk 0:00:10]}  Qg3 {[%clk 0:01:28]} 48. Qxa5 {[%clk 0:00:04]}  Bg1 {[%clk 0:01:27]} 49. Qxe5+ {[%clk 0:00:04]}  dxe5 {[%clk 0:01:28]} 50. Kxg1 {[%clk 0:00:05]}  g5 {[%clk 0:01:28]} 51. Rf1 {[%clk 0:00:01]}  g4 {[%clk 0:01:27]} 52. hxg4 {[%clk 0:00:01]}  h3 {[%clk 0:01:27]} 53. Rf2 {[%clk 0:00:00]}  h2+ {[%clk 0:01:28]} 0-1


[Site "https://www.chess.com"]

[Event "Titled Tuesday Blitz May 9 Early 2023"]
[White "Gurel, Ediz"]
[Black "Sargsyan, Shant"]
[WhiteFideId "44507356"]
[BlackFideId "13306766"]
[WhiteElo "2352"]
[BlackElo "2628"]
[Result "0-1"]
[Round "06"]
[TimeControl "180+2"]
[Date "2023.05.09"]
[WhiteClock "0:00:00"]
[BlackClock "0:00:56"]

1. d4 {[%clk 0:03:00]}  g6 {[%clk 0:02:59]} 2. c4 {[%clk 0:02:59]}  Nf6 {[%clk 0:03:00]} 3. Nf3 {[%clk 0:03:00]}  Bg7 {[%clk 0:03:00]} 4. Nc3 {[%clk 0:03:01]}  O-O {[%clk 0:03:01]} 5. e4 {[%clk 0:03:01]}  d6 {[%clk 0:03:02]} 6. Be2 {[%clk 0:03:01]}  e5 {[%clk 0:03:02]} 7. O-O {[%clk 0:02:59]}  Na6 {[%clk 0:03:02]} 8. d5 {[%clk 0:02:52]}  Nc5 {[%clk 0:03:02]} 9. Qc2 {[%clk 0:02:53]}  a5 {[%clk 0:03:01]} 10. Rb1 {[%clk 0:02:49]}  Nh5 {[%clk 0:03:00]} 11. Bg5 {[%clk 0:02:30]}  f6 {[%clk 0:03:00]} 12. Be3 {[%clk 0:02:30]}  b6 {[%clk 0:02:56]} 13. a3 {[%clk 0:02:26]}  a4 {[%clk 0:02:53]} 14. Bxc5 {[%clk 0:02:24]}  bxc5 {[%clk 0:02:54]} 15. Nxa4 {[%clk 0:02:25]}  f5 {[%clk 0:02:54]} 16. Nc3 {[%clk 0:02:25]}  Nf4 {[%clk 0:02:54]} 17. Nd2 {[%clk 0:02:15]}  Qg5 {[%clk 0:02:47]} 18. Bf3 {[%clk 0:02:16]}  Bh6 {[%clk 0:02:40]} 19. Rbd1 {[%clk 0:02:12]}  Bd7 {[%clk 0:02:25]} 20. Kh1 {[%clk 0:02:12]}  Rf7 {[%clk 0:02:20]} 21. Nb5 {[%clk 0:01:58]}  Qd8 {[%clk 0:02:17]} 22. exf5 {[%clk 0:01:50]}  gxf5 {[%clk 0:02:17]} 23. g3 {[%clk 0:01:51]}  Ng6 {[%clk 0:02:12]} 24. Bg2 {[%clk 0:01:42]}  e4 {[%clk 0:02:13]} 25. Rde1 {[%clk 0:01:17]}  Ne5 {[%clk 0:02:07]} 26. f4 {[%clk 0:01:10]}  Ng4 {[%clk 0:01:53]} 27. h3 {[%clk 0:01:08]}  Nf6 {[%clk 0:01:53]} 28. Kh2 {[%clk 0:01:09]}  Bg7 {[%clk 0:01:53]} 29. Nc3 {[%clk 0:01:05]}  h5 {[%clk 0:01:52]} 30. Ndxe4 {[%clk 0:00:58]}  fxe4 {[%clk 0:01:52]} 31. Nxe4 {[%clk 0:00:59]}  Nxe4 {[%clk 0:01:45]} 32. Bxe4 {[%clk 0:00:58]}  Qf6 {[%clk 0:01:44]} 33. Bg6 {[%clk 0:00:54]}  Rff8 {[%clk 0:01:43]} 34. Bxh5 {[%clk 0:00:51]}  Qxb2 {[%clk 0:01:36]} 35. Qxb2 {[%clk 0:00:51]}  Bxb2 {[%clk 0:01:37]} 36. Re7 {[%clk 0:00:51]}  Rad8 {[%clk 0:01:37]} 37. Bg6 {[%clk 0:00:41]}  Bf6 {[%clk 0:01:31]} 38. Rh7 {[%clk 0:00:40]}  Bg7 {[%clk 0:01:09]} 39. Re1 {[%clk 0:00:31]}  Rf6 {[%clk 0:01:03]} 40. Bc2 {[%clk 0:00:17]}  Bf5 {[%clk 0:01:03]} 41. Bxf5 {[%clk 0:00:17]}  Rxf5 {[%clk 0:01:04]} 42. Rh4 {[%clk 0:00:18]}  Kf7 {[%clk 0:01:04]} 43. Rg4 {[%clk 0:00:14]}  Ra8 {[%clk 0:01:01]} 44. Re3 {[%clk 0:00:15]}  Ra4 {[%clk 0:01:00]} 45. Rb3 {[%clk 0:00:10]}  Rxc4 {[%clk 0:00:58]} 46. Rb7 {[%clk 0:00:04]}  Rc2+ {[%clk 0:00:58]} 47. Kh1 {[%clk 0:00:03]}  Rxd5 {[%clk 0:00:55]} 48. Rxc7+ {[%clk 0:00:00]}  Ke8 {[%clk 0:00:56]} 0-1


[Site "https://www.chess.com"]

[Event "Titled Tuesday Blitz May 9 Early 2023"]
[White "Terry, Renato"]
[Black "Ivic, Velimir"]
[WhiteFideId "3803457"]
[BlackFideId "950122"]
[WhiteElo "2575"]
[BlackElo "2563"]
[Result "1/2-1/2"]
[Round "06"]
[TimeControl "180+2"]
[Date "2023.05.09"]
[WhiteClock "0:00:01"]
[BlackClock "0:00:05"]

1. Nf3 {[%clk 0:03:00]}  Nf6 {[%clk 0:02:57]} 2. b3 {[%clk 0:02:58]}  g6 {[%clk 0:02:57]} 3. Bb2 {[%clk 0:02:58]}  Bg7 {[%clk 0:02:58]} 4. g3 {[%clk 0:02:58]}  d6 {[%clk 0:02:58]} 5. d4 {[%clk 0:02:57]}  b5 {[%clk 0:02:59]} 6. Bg2 {[%clk 0:02:57]}  Bb7 {[%clk 0:02:59]} 7. O-O {[%clk 0:02:57]}  Nbd7 {[%clk 0:03:00]} 8. Nbd2 {[%clk 0:02:56]}  O-O {[%clk 0:03:00]} 9. c4 {[%clk 0:02:52]}  bxc4 {[%clk 0:03:00]} 10. Nxc4 {[%clk 0:02:53]}  a5 {[%clk 0:03:01]} 11. Rc1 {[%clk 0:02:48]}  Ra6 {[%clk 0:02:58]} 12. Re1 {[%clk 0:02:41]}  Qa8 {[%clk 0:02:58]} 13. a3 {[%clk 0:02:40]}  Rb8 {[%clk 0:02:53]} 14. Bf1 {[%clk 0:02:33]}  Bd5 {[%clk 0:02:41]} 15. Nfd2 {[%clk 0:02:30]}  c5 {[%clk 0:02:41]} 16. f3 {[%clk 0:02:24]}  cxd4 {[%clk 0:02:27]} 17. Bxd4 {[%clk 0:02:24]}  e5 {[%clk 0:02:03]} 18. Bf2 {[%clk 0:02:15]}  Be6 {[%clk 0:01:32]} 19. e4 {[%clk 0:02:10]}  d5 {[%clk 0:01:31]} 20. exd5 {[%clk 0:02:09]}  Nxd5 {[%clk 0:01:31]} 21. Ne4 {[%clk 0:02:05]}  Rc6 {[%clk 0:01:26]} 22. Ng5 {[%clk 0:01:50]}  Rd8 {[%clk 0:01:08]} 23. Nxe6 {[%clk 0:01:48]}  Rxe6 {[%clk 0:01:09]} 24. Qc2 {[%clk 0:01:42]}  Ne7 {[%clk 0:01:04]} 25. Bg2 {[%clk 0:01:38]}  Qa6 {[%clk 0:01:00]} 26. Red1 {[%clk 0:01:36]}  Nc6 {[%clk 0:00:56]} 27. Bh3 {[%clk 0:01:17]}  f5 {[%clk 0:00:53]} 28. Bf1 {[%clk 0:01:16]}  Nd4 {[%clk 0:00:29]} 29. Qc3 {[%clk 0:00:41]}  Qa8 {[%clk 0:00:20]} 30. Nd2 {[%clk 0:00:35]}  Nb6 {[%clk 0:00:16]} 31. Re1 {[%clk 0:00:19]}  Rc6 {[%clk 0:00:11]} 32. Qe3 {[%clk 0:00:19]}  Nd5 {[%clk 0:00:08]} 33. Qd3 {[%clk 0:00:17]}  Rxc1 {[%clk 0:00:04]} 34. Rxc1 {[%clk 0:00:18]}  Ne7 {[%clk 0:00:04]} 35. Bg2 {[%clk 0:00:16]}  Kh8 {[%clk 0:00:04]} 36. Qf1 {[%clk 0:00:13]}  Qb8 {[%clk 0:00:04]} 37. Rb1 {[%clk 0:00:13]}  Bh6 {[%clk 0:00:05]} 38. Nc4 {[%clk 0:00:13]}  Nec6 {[%clk 0:00:04]} 39. b4 {[%clk 0:00:12]}  axb4 {[%clk 0:00:05]} 40. axb4 {[%clk 0:00:13]}  Qb5 {[%clk 0:00:03]} 41. h4 {[%clk 0:00:10]}  Bg7 {[%clk 0:00:03]} 42. h5 {[%clk 0:00:10]}  gxh5 {[%clk 0:00:03]} 43. Kh2 {[%clk 0:00:10]}  h4 {[%clk 0:00:04]} 44. gxh4 {[%clk 0:00:10]}  Bh6 {[%clk 0:00:04]} 45. Bg3 {[%clk 0:00:09]}  Qd5 {[%clk 0:00:04]} 46. b5 {[%clk 0:00:08]}  f4 {[%clk 0:00:04]} 47. Bf2 {[%clk 0:00:07]}  Ne7 {[%clk 0:00:04]} 48. Qe1 {[%clk 0:00:05]}  Bg7 {[%clk 0:00:02]} 49. Qe4 {[%clk 0:00:05]}  Qxe4 {[%clk 0:00:02]} 50. fxe4 {[%clk 0:00:06]}  f3 {[%clk 0:00:02]} 51. Bf1 {[%clk 0:00:06]}  Ne2 {[%clk 0:00:02]} 52. b6 {[%clk 0:00:06]}  Nc3 {[%clk 0:00:02]} 53. Re1 {[%clk 0:00:06]}  Nc6 {[%clk 0:00:02]} 54. Bg3 {[%clk 0:00:03]}  Rb8 {[%clk 0:00:02]} 55. Re3 {[%clk 0:00:03]}  Na4 {[%clk 0:00:01]} 56. Rb3 {[%clk 0:00:03]}  Nc5 {[%clk 0:00:02]} 57. Rxf3 {[%clk 0:00:03]}  Nxe4 {[%clk 0:00:02]} 58. Be1 {[%clk 0:00:04]}  Nf6 {[%clk 0:00:02]} 59. Bg2 {[%clk 0:00:04]}  e4 {[%clk 0:00:03]} 60. Rb3 {[%clk 0:00:04]}  Nd7 {[%clk 0:00:03]} 61. Bxe4 {[%clk 0:00:03]}  Nc5 {[%clk 0:00:04]} 62. Re3 {[%clk 0:00:03]}  Bd4 {[%clk 0:00:03]} 63. Re2 {[%clk 0:00:04]}  Nxe4 {[%clk 0:00:02]} 64. Rxe4 {[%clk 0:00:04]}  Bxb6 {[%clk 0:00:03]} 65. Bc3+ {[%clk 0:00:02]}  Kg8 {[%clk 0:00:03]} 66. Rg4+ {[%clk 0:00:03]}  Kf7 {[%clk 0:00:04]} 67. Rg7+ {[%clk 0:00:03]}  Ke6 {[%clk 0:00:04]} 68. Rxh7 {[%clk 0:00:04]}  Bd4 {[%clk 0:00:05]} 69. Rh6+ {[%clk 0:00:03]}  Kd5 {[%clk 0:00:05]} 70. Bxd4 {[%clk 0:00:03]}  Nxd4 {[%clk 0:00:06]} 71. Ne3+ {[%clk 0:00:04]}  Ke4 {[%clk 0:00:06]} 72. Ng4 {[%clk 0:00:04]}  Kf4 {[%clk 0:00:06]} 73. Nf2 {[%clk 0:00:04]}  Rb2 {[%clk 0:00:02]} 74. Kg2 {[%clk 0:00:02]}  Nf5 {[%clk 0:00:01]} 75. Rf6 {[%clk 0:00:03]}  Ke5 {[%clk 0:00:02]} 76. Rf8 {[%clk 0:00:03]}  Nxh4+ {[%clk 0:00:02]} 77. Kf1 {[%clk 0:00:03]}  Rb1+ {[%clk 0:00:02]} 78. Ke2 {[%clk 0:00:03]}  Nf5 {[%clk 0:00:03]} 79. Nd3+ {[%clk 0:00:03]}  Ke4 {[%clk 0:00:03]} 80. Nf2+ {[%clk 0:00:03]}  Ke5 {[%clk 0:00:04]} 81. Nd3+ {[%clk 0:00:02]}  Ke4 {[%clk 0:00:04]} 82. Re8+ {[%clk 0:00:03]}  Kd4 {[%clk 0:00:04]} 83. Rd8+ {[%clk 0:00:03]}  Ke4 {[%clk 0:00:03]} 84. Kd2 {[%clk 0:00:04]}  Nd4 {[%clk 0:00:02]} 85. Nc5+ {[%clk 0:00:04]}  Ke5 {[%clk 0:00:02]} 86. Nd3+ {[%clk 0:00:03]}  Ke4 {[%clk 0:00:03]} 87. Re8+ {[%clk 0:00:04]}  Kd5 {[%clk 0:00:03]} 88. Nf4+ {[%clk 0:00:03]}  Kd6 {[%clk 0:00:03]} 89. Rd8+ {[%clk 0:00:03]}  Ke5 {[%clk 0:00:03]} 90. Ng6+ {[%clk 0:00:04]}  Kf6 {[%clk 0:00:02]} 91. Nf4 {[%clk 0:00:03]}  Nf3+ {[%clk 0:00:02]} 92. Ke3 {[%clk 0:00:03]}  Ne5 {[%clk 0:00:03]} 93. Nd5+ {[%clk 0:00:03]}  Ke6 {[%clk 0:00:03]} 94. Nf4+ {[%clk 0:00:02]}  Ke7 {[%clk 0:00:04]} 95. Rc8 {[%clk 0:00:02]}  Rb3+ {[%clk 0:00:04]} 96. Ke4 {[%clk 0:00:02]}  Nd7 {[%clk 0:00:04]} 97. Nd5+ {[%clk 0:00:02]}  Kd6 {[%clk 0:00:05]} 98. Rc3 {[%clk 0:00:01]}  Rxc3 {[%clk 0:00:05]} 99. Nxc3 {[%clk 0:00:01]} 1/2-1/2


[Site "https://www.chess.com"]

[Event "Titled Tuesday Blitz May 9 Early 2023"]
[White "Ohanyan, Emin"]
[Black "Kollars, Dmitrij"]
[WhiteFideId "13312022"]
[BlackFideId "12909572"]
[WhiteElo "2411"]
[BlackElo "2584"]
[Result "0-1"]
[Round "06"]
[TimeControl "180+2"]
[Date "2023.05.09"]
[WhiteClock "0:00:01"]
[BlackClock "0:00:10"]

1. d4 {[%clk 0:03:00]}  Nf6 {[%clk 0:02:58]} 2. c4 {[%clk 0:02:59]}  e6 {[%clk 0:02:58]} 3. Nf3 {[%clk 0:02:58]}  d5 {[%clk 0:02:56]} 4. Nc3 {[%clk 0:02:58]}  c6 {[%clk 0:02:54]} 5. e3 {[%clk 0:02:56]}  Nbd7 {[%clk 0:02:52]} 6. Qc2 {[%clk 0:02:57]}  Bd6 {[%clk 0:02:52]} 7. Bd3 {[%clk 0:02:55]}  dxc4 {[%clk 0:02:51]} 8. Bxc4 {[%clk 0:02:56]}  O-O {[%clk 0:02:51]} 9. O-O {[%clk 0:02:56]}  b5 {[%clk 0:02:52]} 10. Bd3 {[%clk 0:02:56]}  Bb7 {[%clk 0:02:46]} 11. e4 {[%clk 0:02:56]}  e5 {[%clk 0:02:45]} 12. h3 {[%clk 0:02:57]}  Qc7 {[%clk 0:02:40]} 13. dxe5 {[%clk 0:02:38]}  Nxe5 {[%clk 0:02:41]} 14. Nxe5 {[%clk 0:02:37]}  Bxe5 {[%clk 0:02:42]} 15. Be3 {[%clk 0:02:37]}  Nh5 {[%clk 0:02:13]} 16. Ne2 {[%clk 0:02:26]}  Nf4 {[%clk 0:01:23]} 17. Nxf4 {[%clk 0:02:24]}  Bxf4 {[%clk 0:01:24]} 18. Bc5 {[%clk 0:02:10]}  Rfe8 {[%clk 0:01:17]} 19. Rad1 {[%clk 0:02:02]}  Bc8 {[%clk 0:01:13]} 20. Rfe1 {[%clk 0:01:54]}  Be6 {[%clk 0:01:11]} 21. a3 {[%clk 0:01:08]}  Rad8 {[%clk 0:01:09]} 22. Bf1 {[%clk 0:01:03]}  h5 {[%clk 0:01:01]} 23. g3 {[%clk 0:00:57]}  Bd6 {[%clk 0:00:59]} 24. Bxd6 {[%clk 0:00:46]}  Rxd6 {[%clk 0:01:00]} 25. Bxb5 {[%clk 0:00:45]}  Bxh3 {[%clk 0:00:44]} 26. Rxd6 {[%clk 0:00:37]}  Qxd6 {[%clk 0:00:45]} 27. Qxc6 {[%clk 0:00:38]}  Rd8 {[%clk 0:00:34]} 28. Qxd6 {[%clk 0:00:35]}  Rxd6 {[%clk 0:00:35]} 29. Bf1 {[%clk 0:00:14]}  Be6 {[%clk 0:00:28]} 30. f3 {[%clk 0:00:09]}  g5 {[%clk 0:00:26]} 31. Kf2 {[%clk 0:00:09]}  Rd2+ {[%clk 0:00:24]} 32. Re2 {[%clk 0:00:09]}  Rd1 {[%clk 0:00:25]} 33. Re1 {[%clk 0:00:09]}  Rd2+ {[%clk 0:00:25]} 34. Re2 {[%clk 0:00:10]}  Rd1 {[%clk 0:00:26]} 35. Rc2 {[%clk 0:00:08]}  Kg7 {[%clk 0:00:20]} 36. Be2 {[%clk 0:00:05]}  Rb1 {[%clk 0:00:20]} 37. f4 {[%clk 0:00:04]}  g4 {[%clk 0:00:13]} 38. e5 {[%clk 0:00:01]}  Bb3 {[%clk 0:00:13]} 39. Rd2 {[%clk 0:00:02]}  Rh1 {[%clk 0:00:13]} 40. Kg2 {[%clk 0:00:02]}  Re1 {[%clk 0:00:12]} 41. Bb5 {[%clk 0:00:01]}  Be6 {[%clk 0:00:10]} 42. Bc6 {[%clk 0:00:01]}  Bf5 {[%clk 0:00:09]} 43. Kf2 {[%clk 0:00:02]}  Rb1 {[%clk 0:00:09]} 44. Bg2 {[%clk 0:00:02]}  Rc1 {[%clk 0:00:09]} 45. Bd5 {[%clk 0:00:02]}  a5 {[%clk 0:00:07]} 46. b4 {[%clk 0:00:01]}  axb4 {[%clk 0:00:07]} 47. axb4 {[%clk 0:00:02]}  Rb1 {[%clk 0:00:08]} 48. Rd4 {[%clk 0:00:03]}  Rb2+ {[%clk 0:00:08]} 49. Ke3 {[%clk 0:00:03]}  Kf8 {[%clk 0:00:06]} 50. Be4 {[%clk 0:00:03]}  Bxe4 {[%clk 0:00:05]} 51. Rxe4 {[%clk 0:00:02]}  Rg2 {[%clk 0:00:05]} 52. f5 {[%clk 0:00:02]}  Rxg3+ {[%clk 0:00:05]} 53. Kf4 {[%clk 0:00:03]}  Rf3+ {[%clk 0:00:05]} 54. Kg5 {[%clk 0:00:04]}  g3 {[%clk 0:00:06]} 55. Kxh5 {[%clk 0:00:02]}  Rxf5+ {[%clk 0:00:06]} 56. Kh4 {[%clk 0:00:01]}  g2 {[%clk 0:00:06]} 57. Rg4 {[%clk 0:00:02]}  Rf4 {[%clk 0:00:07]} 58. Rxf4 {[%clk 0:00:02]}  g1=Q {[%clk 0:00:07]} 59. e6 {[%clk 0:00:01]}  Qe1+ {[%clk 0:00:07]} 60. Kg4 {[%clk 0:00:01]}  Qxe6+ {[%clk 0:00:08]} 61. Kf3 {[%clk 0:00:02]}  Qd6 {[%clk 0:00:09]} 62. Ke3 {[%clk 0:00:02]}  Qe5+ {[%clk 0:00:09]} 63. Re4 {[%clk 0:00:03]}  Qc3+ {[%clk 0:00:10]} 64. Kf4 {[%clk 0:00:03]}  Kg7 {[%clk 0:00:10]} 65. Kf5 {[%clk 0:00:03]}  Qc2 {[%clk 0:00:10]} 66. Ke5 {[%clk 0:00:03]}  f6+ {[%clk 0:00:10]} 67. Kd5 {[%clk 0:00:03]}  Qd3+ {[%clk 0:00:09]} 68. Rd4 {[%clk 0:00:04]}  Qb5+ {[%clk 0:00:09]} 69. Ke6 {[%clk 0:00:01]}  Qe5+ {[%clk 0:00:10]} 0-1


[Site "https://www.chess.com"]

[Event "Titled Tuesday Blitz May 9 Early 2023"]
[White "Bluebaum, Matthias"]
[Black "Kravtsiv, Martyn"]
[WhiteFideId "24651516"]
[BlackFideId "14113147"]
[WhiteElo "2639"]
[BlackElo "2695"]
[Result "1-0"]
[Round "06"]
[TimeControl "180+2"]
[Date "2023.05.09"]
[WhiteClock "0:01:19"]
[BlackClock "0:00:27"]

1. d4 {[%clk 0:03:00]}  d5 {[%clk 0:03:00]} 2. c4 {[%clk 0:03:00]}  e6 {[%clk 0:03:00]} 3. Nc3 {[%clk 0:03:01]}  Bb4 {[%clk 0:03:00]} 4. e3 {[%clk 0:02:59]}  Nf6 {[%clk 0:03:00]} 5. Bd2 {[%clk 0:03:00]}  O-O {[%clk 0:02:59]} 6. Nf3 {[%clk 0:03:01]}  b6 {[%clk 0:02:57]} 7. cxd5 {[%clk 0:03:00]}  exd5 {[%clk 0:02:56]} 8. Rc1 {[%clk 0:03:01]}  Re8 {[%clk 0:02:50]} 9. Ne5 {[%clk 0:03:00]}  Bb7 {[%clk 0:02:47]} 10. Bb5 {[%clk 0:02:54]}  c6 {[%clk 0:02:46]} 11. Bd3 {[%clk 0:02:54]}  Bd6 {[%clk 0:02:42]} 12. f4 {[%clk 0:02:54]}  c5 {[%clk 0:02:42]} 13. Bb5 {[%clk 0:02:51]}  cxd4 {[%clk 0:02:34]} 14. exd4 {[%clk 0:02:51]}  Bc6 {[%clk 0:02:28]} 15. O-O {[%clk 0:02:12]}  Bxb5 {[%clk 0:02:26]} 16. Nxb5 {[%clk 0:02:13]}  a6 {[%clk 0:02:25]} 17. Nxd6 {[%clk 0:02:04]}  Qxd6 {[%clk 0:02:26]} 18. f5 {[%clk 0:02:05]}  Ne4 {[%clk 0:02:15]} 19. f6 {[%clk 0:01:48]}  Nxf6 {[%clk 0:02:11]} 20. Bg5 {[%clk 0:01:48]}  Ra7 {[%clk 0:02:06]} 21. Bxf6 {[%clk 0:01:37]}  gxf6 {[%clk 0:02:06]} 22. Qg4+ {[%clk 0:01:37]}  Kf8 {[%clk 0:01:55]} 23. Nf3 {[%clk 0:01:21]}  Nc6 {[%clk 0:01:45]} 24. Nh4 {[%clk 0:01:20]}  Ne7 {[%clk 0:01:36]} 25. Qh5 {[%clk 0:01:21]}  Kg8 {[%clk 0:01:22]} 26. Rc3 {[%clk 0:01:20]}  Ng6 {[%clk 0:00:51]} 27. Nf5 {[%clk 0:01:19]}  Qf8 {[%clk 0:00:27]} 28. Rh3 {[%clk 0:01:19]} 1-0


[Site "https://www.chess.com"]